bitfinex-derivatives/quotes_SOLF0:USTF0_20230830
["timestamp","ask_amount","ask_price","bid_price","bid_amount"]
[1693429846280,19.36187287,20.833,20.808,14.41]
[1693429846581,19.36187287,20.833,20.806,14.41]
[1693429846875,19.36187287,20.833,20.808,14.41]
[1693429847071,19.36187287,20.833,20.806,14.41]
[1693429847277,19.36187287,20.833,20.808,14.41]
[1693429847477,19.36187287,20.833,20.806,14.41]
[1693429847774,19.36187287,20.833,20.808,14.41]
[1693429847978,19.36187287,20.833,20.806,133.57229423]
[1693429848174,19.36187287,20.833,20.808,14.41]
[1693429848374,19.36187287,20.833,20.806,14.41]
[1693429848581,19.36187287,20.833,20.805,81.75939799]
[1693429848582,19.36187287,20.833,20.808,14.41]
[1693429848781,19.36187287,20.833,20.806,14.41]
[1693429849082,19.36187287,20.833,20.808,14.41]
[1693429849280,19.36187287,20.833,20.806,14.41]
[1693429849478,19.36187287,20.833,20.808,14.41]
[1693429849678,19.36187287,20.833,20.806,14.41]
[1693429849878,19.36187287,20.833,20.808,14.41]
[1693429850078,19.36187287,20.833,20.806,14.41]
[1693429850280,19.36187287,20.833,20.808,14.41]
[1693429850578,19.36187287,20.833,20.806,14.41]
[1693429850781,19.36187287,20.833,20.805,81.75939799]
[1693429850782,19.36187287,20.833,20.808,14.41]
[1693429850988,19.36187287,20.833,20.806,14.41]
[1693429851187,19.36187287,20.833,20.808,14.41]
[1693429851479,19.36187287,20.833,20.806,14.41]
[1693429851781,19.36187287,20.833,20.808,14.41]
[1693429851980,19.36187287,20.833,20.806,14.41]
[1693429852180,19.36187287,20.833,20.808,14.41]
[1693429852381,19.36187287,20.833,20.806,14.41]
[1693429852682,19.36187287,20.833,20.808,14.41]
[1693429852982,19.36187287,20.833,20.806,14.41]
[1693429853280,19.36187287,20.833,20.808,14.41]
[1693429853480,19.36187287,20.833,20.806,14.41]
[1693429853683,19.36187287,20.833,20.808,14.41]
[1693429853879,19.36187287,20.833,20.806,14.41]
[1693429854083,19.36187287,20.833,20.808,14.41]
[1693429854279,19.36187287,20.833,20.805,81.75939799]
[1693429854280,19.36187287,20.833,20.806,14.41]
[1693429854485,19.36187287,20.833,20.808,14.41]
[1693429854691,19.36187287,20.833,20.806,14.41]
[1693429854890,19.36187287,20.833,20.808,14.41]
[1693429855188,19.36187287,20.833,20.806,14.41]
[1693429855384,19.36187287,20.833,20.808,14.41]
[1693429855586,19.36187287,20.833,20.806,14.41]
[1693429855788,19.36187287,20.833,20.808,14.41]
[1693429855985,19.36187287,20.833,20.806,14.41]
[1693429856178,19.36187287,20.833,20.808,14.41]
[1693429856383,19.36187287,20.833,20.806,14.41]
[1693429856589,19.36187287,20.833,20.808,14.41]
[1693429856888,19.36187287,20.833,20.806,14.41]
[1693429857088,19.36187287,20.833,20.808,14.41]
[1693429857289,19.36187287,20.833,20.806,14.41]
[1693429857485,19.36187287,20.833,20.808,14.41]
[1693429857690,19.36187287,20.833,20.806,14.41]
[1693429857889,19.36187287,20.833,20.808,14.41]
[1693429858090,19.36187287,20.833,20.806,14.41]
[1693429858391,19.36187287,20.833,20.808,14.41]
[1693429858590,19.36187287,20.833,20.806,14.41]
[1693429858786,19.36187287,20.833,20.808,14.41]
[1693429858991,19.36187287,20.833,20.806,14.41]
[1693429859192,19.36187287,20.833,20.808,14.41]
[1693429859495,19.36187287,20.833,20.806,14.41]
[1693429859790,19.36187287,20.833,20.808,14.41]
[1693429859983,19.36187287,20.833,20.806,14.41]
[1693429860181,19.36187287,20.833,20.808,14.41]
[1693429860386,19.36187287,20.833,20.806,14.41]
[1693429860583,19.36187287,20.833,20.808,14.41]
[1693429860785,19.36187287,20.833,20.807,7.98875247]
[1693429860786,19.36187287,20.833,20.806,14.41]
[1693429860985,19.36187287,20.833,20.808,14.41]
[1693429861180,19.36187287,20.833,20.806,14.41]
[1693429861394,19.36187287,20.833,20.808,14.41]
[1693429861590,19.36187287,20.833,20.806,14.41]
[1693429861792,19.36187287,20.833,20.808,14.41]
[1693429861993,19.36187287,20.833,20.806,14.41]
[1693429862192,19.36187287,20.833,20.808,14.41]
[1693429862394,19.36187287,20.833,20.806,14.41]
[1693429862594,19.36187287,20.833,20.808,14.41]
[1693429862795,19.36187287,20.833,20.806,14.41]
[1693429862993,19.36187287,20.833,20.808,14.41]
[1693429863193,19.36187287,20.833,20.806,14.41]
[1693429863494,19.36187287,20.833,20.808,14.41]
[1693429863694,19.36187287,20.833,20.806,14.41]
[1693429863891,19.36187287,20.833,20.808,14.41]
[1693429864088,19.36187287,20.833,20.806,14.41]
[1693429864397,19.36187287,20.833,20.808,14.41]
[1693429864597,19.36187287,20.833,20.806,14.41]
[1693429864797,19.36187287,20.833,20.808,14.41]
[1693429864991,19.36187287,20.833,20.806,14.41]
[1693429865298,19.36187287,20.833,20.808,14.41]
[1693429865498,19.36187287,20.833,20.806,14.41]
[1693429865791,19.36187287,20.833,20.808,14.41]
[1693429865997,19.36187287,20.833,20.806,14.41]
[1693429866200,19.36187287,20.833,20.808,14.41]
[1693429866398,19.36187287,20.833,20.806,14.41]
[1693429866593,19.36187287,20.833,20.808,14.41]
[1693429866794,19.36187287,20.833,20.806,14.41]
[1693429867099,19.36187287,20.833,20.808,14.41]
[1693429867293,19.36187287,20.833,20.806,14.41]
[1693429867495,19.36187287,20.833,20.808,14.41]
[1693429867699,19.36187287,20.833,20.806,14.41]
[1693429867999,19.36187287,20.833,20.808,14.41]
[1693429868201,19.36187287,20.833,20.806,14.41]
[1693429868400,19.36187287,20.833,20.808,14.41]
[1693429868699,19.36187287,20.833,20.806,14.41]
[1693429868998,19.36187287,20.833,20.808,14.41]
[1693429869298,19.36187287,20.833,20.806,14.41]
[1693429869499,19.36187287,20.833,20.808,14.41]
[1693429869699,19.36187287,20.833,20.806,14.41]
[1693429869992,19.36187287,20.833,20.808,14.41]
[1693429870198,19.36187287,20.833,20.806,14.41]
[1693429870395,19.36187287,20.833,20.808,14.41]
[1693429870594,19.36187287,20.833,20.806,14.41]
[1693429870799,19.36187287,20.833,20.808,14.41]
[1693429870999,19.36187287,20.833,20.806,14.41]
[1693429871192,19.36187287,20.833,20.808,14.41]
[1693429871396,19.36187287,20.833,20.806,14.41]
[1693429871589,19.36187287,20.833,20.808,14.41]
[1693429871797,19.36187287,20.833,20.806,14.41]
[1693429871994,19.36187287,20.833,20.808,14.41]
[1693429872199,19.36187287,20.833,20.806,14.41]
[1693429872500,19.36187287,20.833,20.808,14.41]
[1693429872701,19.36187287,20.833,20.806,14.41]
[1693429872892,19.36187287,20.833,20.808,14.41]
[1693429873095,19.36187287,20.833,20.806,14.41]
[1693429873297,19.36187287,20.833,20.808,14.41]
[1693429873500,19.36187287,20.833,20.806,14.41]
[1693429873698,19.36187287,20.833,20.808,14.41]
[1693429873898,19.36187287,20.833,20.806,14.41]
[1693429874197,19.36187287,20.833,20.808,14.41]
[1693429874398,19.36187287,20.833,20.806,14.41]
[1693429874598,19.36187287,20.833,20.808,14.41]
[1693429874894,19.36187287,20.833,20.806,14.41]
[1693429875098,19.36187287,20.833,20.808,14.41]
[1693429875393,19.36187287,20.833,20.806,14.41]
[1693429875599,19.36187287,20.833,20.808,14.41]
[1693429875803,19.36187287,20.833,20.806,14.41]
[1693429876005,19.36187287,20.833,20.808,14.41]
[1693429876206,19.36187287,20.833,20.806,14.41]
[1693429876409,19.36187287,20.833,20.808,14.41]
[1693429876708,19.36187287,20.833,20.805,57.72671799]
[1693429876709,19.36187287,20.833,20.806,14.41]
[1693429877006,19.36187287,20.833,20.808,14.41]
[1693429877206,19.36187287,20.833,20.806,14.41]
[1693429877408,19.36187287,20.833,20.808,14.41]
[1693429877705,19.36187287,20.833,20.806,14.41]
[1693429878006,19.36187287,20.833,20.808,14.41]
[1693429878305,19.36187287,20.833,20.806,14.41]
[1693429878608,19.36187287,20.833,20.808,14.41]
[1693429878806,19.36187287,20.833,20.806,14.41]
[1693429879008,19.36187287,20.833,20.808,14.41]
[1693429879203,19.36187287,20.833,20.806,14.41]
[1693429879405,19.36187287,20.833,20.808,14.41]
[1693429879606,19.36187287,20.833,20.806,14.41]
[1693429879909,19.36187287,20.833,20.808,14.41]
[1693429880105,19.36187287,20.833,20.806,14.41]
[1693429880305,19.36187287,20.833,20.805,57.72671799]
[1693429880306,19.36187287,20.833,20.808,14.41]
[1693429880611,19.36187287,20.833,20.806,14.41]
[1693429880811,19.36187287,20.833,20.808,14.41]
[1693429880999,19.36187287,20.833,20.806,14.41]
[1693429881204,19.36187287,20.833,20.808,14.41]
[1693429881507,19.36187287,20.833,20.806,14.41]
[1693429881707,19.36187287,20.833,20.808,14.41]
[1693429881906,19.36187287,20.833,20.806,14.41]
[1693429882110,19.36187287,20.833,20.808,14.41]
[1693429882312,19.36187287,20.833,20.806,14.41]
[1693429882512,19.36187287,20.833,20.808,14.41]
[1693429882713,19.36187287,20.833,20.806,14.41]
[1693429882913,19.36187287,20.833,20.808,14.41]
[1693429883114,19.36245393,20.832,20.806,14.41]
[1693429883311,19.36245393,20.831,20.808,14.41]
[1693429883610,19.36245393,20.83,20.806,14.41]
[1693429883812,0.5,20.834,20.808,14.41]
[1693429883813,19.36245393,20.829,20.808,14.41]
[1693429884014,19.36245393,20.828,20.806,14.41]
[1693429884212,19.36245393,20.827,20.808,14.41]
[1693429884414,19.36245393,20.826,20.806,14.41]
[1693429884619,19.36245393,20.825,20.808,14.41]
[1693429884806,19.36245393,20.824,20.806,14.41]
[1693429885011,19.36245393,20.823,20.808,14.41]
[1693429885216,19.36245393,20.822,20.806,14.41]
[1693429885517,19.36245393,20.821,20.808,14.41]
[1693429885717,19.36245393,20.82,20.806,14.41]
[1693429885915,37.44599135,20.835,20.808,514.41]
[1693429886109,19.35868134,20.834,20.809,127.69864877]
[1693429886310,19.35868134,20.833,20.811,14.41]
[1693429886611,19.35868134,20.833,20.813,14.41]
[1693429886817,19.35868134,20.832,20.814,8.49204122]
[1693429887012,19.35868134,20.845,20.815,8.49204122]
[1693429887212,19.35868134,20.844,20.817,14.41]
[1693429887414,19.35868134,20.843,20.815,0.5]
[1693429887614,19.35868134,20.842,20.815,0.5]
[1693429887809,19.35868134,20.841,20.817,14.41]
[1693429888014,19.35868134,20.84,20.817,14.41]
[1693429888220,19.35868134,20.839,20.815,0.5]
[1693429888417,19.35868134,20.838,20.815,0.5]
[1693429888721,19.35868134,20.837,20.817,14.41]
[1693429888910,19.35868134,20.836,20.817,14.41]
[1693429889116,19.35868134,20.835,20.815,0.5]
[1693429889311,19.35868134,20.834,20.817,14.41]
[1693429889611,19.35868134,20.833,20.815,0.5]
[1693429889814,0.5,20.846,20.817,14.41]
[1693429889815,19.35868134,20.832,20.817,14.41]
[1693429890015,19.35868134,20.831,20.815,0.5]
[1693429890211,0.5,20.846,20.817,14.41]
[1693429890412,19.3542034,20.845,20.814,21.2438]
[1693429890616,0.5,20.844,20.815,7.98144091]
[1693429890813,19.3542034,20.843,20.815,7.98144091]
[1693429891317,19.3542034,20.842,20.815,7.98144091]
[1693429891522,19.3542034,20.841,20.815,7.98144091]
[1693429891717,19.3542034,20.84,20.815,7.98144091]
[1693429891925,19.3542034,20.839,20.815,7.98144091]
[1693429892112,19.3542034,20.838,20.815,7.98144091]
[1693429892317,19.3542034,20.837,20.815,7.98144091]
[1693429892517,19.3542034,20.836,20.815,7.98144091]
[1693429892718,19.3542034,20.835,20.815,7.98144091]
[1693429892918,19.3542034,20.834,20.815,7.98144091]
[1693429893121,19.3542034,20.833,20.815,7.98144091]
[1693429893425,19.3542034,20.832,20.815,7.98144091]
[1693429893720,0.5,20.846,20.815,7.98144091]
[1693429893921,19.35436666,20.845,20.815,7.98144091]
[1693429894122,0.5,20.844,20.815,7.98144091]
[1693429894323,19.35436666,20.843,20.815,7.98144091]
[1693429894715,19.35436666,20.842,20.815,7.98144091]
[1693429894915,19.35436666,20.841,20.815,7.98144091]
[1693429895115,19.35436666,20.84,20.815,7.98144091]
[1693429895319,19.35436666,20.839,20.815,7.98144091]
[1693429895516,19.35436666,20.838,20.815,7.98144091]
[1693429895716,19.35436666,20.837,20.815,7.98144091]
[1693429895921,19.35436666,20.836,20.815,7.98144091]
[1693429896124,19.35436666,20.835,20.815,7.98144091]
[1693429896322,19.35436666,20.834,20.815,7.98144091]
[1693429896618,19.35436666,20.833,20.815,7.98144091]
[1693429896820,0.5,20.846,20.815,7.98144091]
[1693429897023,19.35439538,20.845,20.815,7.98144091]
[1693429897329,0.5,20.844,20.815,7.98144091]
[1693429897530,19.35439538,20.843,20.815,7.98144091]
[1693429897930,0.5,20.846,20.815,7.98144091]
[1693429897931,19.35439538,20.842,20.815,7.98144091]
[1693429898126,19.35439538,20.841,20.815,7.98144091]
[1693429898336,19.35439538,20.84,20.815,7.98144091]
[1693429898533,19.35439538,20.839,20.815,7.98144091]
[1693429898733,19.35439538,20.838,20.815,7.98144091]
[1693429898939,19.35439538,20.837,20.815,7.98144091]
[1693429899236,19.35439538,20.836,20.815,7.98144091]
[1693429899532,19.35439538,20.835,20.815,8.04144091]
[1693429899727,0.5,20.846,20.815,8.04144091]
[1693429899925,19.35222495,20.845,20.815,8.04144091]
[1693429900127,0.5,20.844,20.815,8.04144091]
[1693429900327,19.35222495,20.843,20.815,8.04144091]
[1693429900723,19.35222495,20.842,20.815,8.04144091]
[1693429900927,19.35222495,20.841,20.815,8.04144091]
[1693429901123,19.35222495,20.84,20.815,8.04144091]
[1693429901428,19.35222495,20.839,20.815,8.04144091]
[1693429901733,19.35222495,20.838,20.815,8.04144091]
[1693429901939,19.35222495,20.837,20.815,8.04144091]
[1693429902232,19.35222495,20.836,20.815,8.04144091]
[1693429902428,0.5,20.846,20.815,8.04144091]
[1693429902631,19.35215962,20.845,20.815,8.04144091]
[1693429902936,0.5,20.844,20.815,8.04144091]
[1693429903139,19.35215962,20.843,20.815,8.04144091]
[1693429903635,19.35215962,20.842,20.815,8.04144091]
[1693429903832,19.35215962,20.841,20.815,8.04144091]
[1693429904029,19.35215962,20.84,20.815,8.04144091]
[1693429904230,19.35215962,20.839,20.815,8.04144091]
[1693429904432,19.35215962,20.838,20.815,8.04144091]
[1693429904631,19.35215962,20.837,20.815,8.04144091]
[1693429904831,19.35215962,20.836,20.815,8.04144091]
[1693429905033,0.5,20.846,20.815,8.04144091]
[1693429905237,19.35221426,20.845,20.815,8.04144091]
[1693429905436,0.5,20.844,20.815,8.04144091]
[1693429905628,19.35221426,20.843,20.815,8.04144091]
[1693429906036,19.35221426,20.842,20.815,8.04144091]
[1693429906238,19.35221426,20.841,20.815,8.04144091]
[1693429906439,19.35221426,20.84,20.815,8.04144091]
[1693429906639,19.35221426,20.839,20.815,8.04144091]
[1693429906840,19.35221426,20.838,20.815,8.04144091]
[1693429907038,19.35221426,20.837,20.815,8.04144091]
[1693429907234,19.35221426,20.836,20.815,8.04144091]
[1693429907433,0.5,20.846,20.815,8.04144091]
[1693429907636,19.35228563,20.845,20.815,8.04144091]
[1693429907835,0.5,20.844,20.815,8.04144091]
[1693429908038,19.35228563,20.843,20.815,8.04144091]
[1693429908339,19.35228563,20.843,20.815,7.98144091]
[1693429908541,19.35228563,20.842,20.815,7.98144091]
[1693429908837,19.35228563,20.841,20.815,7.98144091]
[1693429909137,19.35228563,20.84,20.815,7.98144091]
[1693429909338,19.35228563,20.839,20.815,7.98144091]
[1693429909532,19.35228563,20.838,20.815,7.98144091]
[1693429909735,19.35228563,20.837,20.815,7.98144091]
[1693429909932,19.35228563,20.836,20.815,7.98144091]
[1693429910135,19.35228563,20.835,20.815,7.98144091]
[1693429910336,0.5,20.846,20.815,7.98144091]
[1693429910539,43.34102512,20.845,20.815,7.98144091]
[1693429910736,19.85446512,20.844,20.815,7.98144091]
[1693429911039,19.35446512,20.843,20.814,59.00472174]
[1693429911435,19.35446512,20.843,20.815,7.98257832]
[1693429911631,19.35446512,20.842,20.814,59.00472174]
[1693429911836,19.35446512,20.841,20.815,7.98361365]
[1693429912138,19.35446512,20.84,20.815,7.98361365]
[1693429912335,19.35446512,20.839,20.815,7.98361365]
[1693429912540,19.35446512,20.838,20.815,7.98361365]
[1693429912741,19.35446512,20.837,20.815,7.98361365]
[1693429912935,19.35446512,20.836,20.815,7.98361365]
[1693429913131,19.35446512,20.835,20.815,7.98361365]
[1693429913331,19.35446512,20.834,20.815,7.98361365]
[1693429913642,0.5,20.846,20.815,7.98361365]
[1693429913837,43.34100398,20.845,20.815,7.98361365]
[1693429914032,19.85444398,20.844,20.815,7.98361365]
[1693429914332,19.35444398,20.843,20.815,7.98361365]
[1693429927050,56.87075875,20.843,20.815,7.98361365]
[1693429927349,19.35444398,20.842,20.815,7.98361365]
[1693429927548,19.35444398,20.841,20.815,7.98361365]
[1693429927744,19.35444398,20.84,20.815,7.98361365]
[1693429927947,19.35444398,20.839,20.815,7.98361365]
[1693429928151,19.35444398,20.838,20.815,7.98361365]
[1693429928352,19.35444398,20.837,20.815,7.98361365]
[1693429928549,19.35444398,20.836,20.815,7.98361365]
[1693429928751,19.35444398,20.835,20.815,7.98361365]
[1693429929052,23.98771,20.844,20.815,7.98361365]
[1693429929353,19.354182,20.843,20.815,7.98361365]
[1693429930850,23.99002,20.842,20.815,7.98361365]
[1693429931051,19.354182,20.841,20.815,7.98361365]
[1693429942952,19.354182,20.841,20.814,37.76092174]
[1693429942953,0.5,20.84,20.814,37.76092174]
[1693429943157,19.354182,20.839,20.813,35.057]
[1693429943464,0.5,20.838,20.813,35.057]
[1693429943757,19.354182,20.837,20.813,35.057]
[1693429943961,0.5,20.836,20.813,35.057]
[1693429944158,19.354182,20.835,20.813,35.057]
[1693429944359,0.5,20.834,20.813,35.057]
[1693429944563,19.354182,20.833,20.813,35.057]
[1693429944763,19.854182,20.833,20.813,35.057]
[1693429945062,19.354182,20.832,20.813,35.057]
[1693429945265,19.354182,20.831,20.813,35.057]
[1693429945464,19.354182,20.83,20.813,35.057]
[1693429945661,19.354182,20.829,20.813,35.057]
[1693429945858,19.354182,20.828,20.813,35.057]
[1693429946066,19.354182,20.827,20.813,35.057]
[1693429946266,0.5,20.839,20.813,35.057]
[1693429946558,19.35903927,20.838,20.813,35.057]
[1693429946765,0.5,20.837,20.813,35.057]
[1693429947064,19.35903927,20.836,20.813,35.057]
[1693429947360,0.5,20.835,20.813,35.057]
[1693429947663,19.35903927,20.834,20.813,35.057]
[1693429947864,0.5,20.833,20.813,35.057]
[1693429948067,19.35903927,20.832,20.813,35.057]
[1693429948462,19.35903927,20.831,20.813,35.057]
[1693429948656,19.35903927,20.83,20.813,35.057]
[1693429948860,19.35903927,20.829,20.813,35.057]
[1693429949160,19.35903927,20.828,20.813,35.057]
[1693429949361,19.35903927,20.827,20.813,35.057]
[1693429949562,0.5,20.839,20.813,35.057]
[1693429949867,19.35904308,20.838,20.813,35.057]
[1693429950065,0.5,20.837,20.813,35.057]
[1693429950259,19.35904308,20.836,20.813,35.057]
[1693429950463,0.5,20.835,20.813,20.647]
[1693429950762,19.35904308,20.834,20.813,20.647]
[1693429951159,19.35904308,20.833,20.813,20.647]
[1693429951362,19.35904308,20.832,20.813,20.647]
[1693429951664,19.35904308,20.831,20.813,20.647]
[1693429951866,19.35904308,20.83,20.813,20.647]
[1693429952060,19.35904308,20.829,20.813,20.647]
[1693429952360,19.35904308,20.828,20.813,20.647]
[1693429952668,19.35904308,20.827,20.813,20.647]
[1693429952862,19.35904308,20.826,20.813,20.647]
[1693429953062,19.35904308,20.825,20.813,20.647]
[1693429953273,19.35904308,20.824,20.813,20.647]
[1693429953479,0.5,20.839,20.813,20.647]
[1693429953681,19.36104413,20.838,20.813,20.647]
[1693429953979,19.86104413,20.837,20.813,20.647]
[1693429954173,19.86104413,20.836,20.813,20.647]
[1693429954379,19.86104413,20.835,20.813,20.647]
[1693429954582,19.36104413,20.834,20.813,20.647]
[1693429954781,43.36142413,20.833,20.813,20.647]
[1693429954984,19.36104413,20.832,20.813,20.647]
[1693429955274,43.36257413,20.832,20.813,20.647]
[1693429955481,19.36104413,20.831,20.813,20.647]
[1693429957674,43.36372413,20.831,20.813,20.647]
[1693429957874,19.36104413,20.83,20.813,20.647]
[1693429981403,19.36104413,20.83,20.814,7.9782065]
[1693429982500,19.36104413,20.83,20.813,20.647]
[1693429982697,19.36104413,20.83,20.814,7.97812916]
[1693429984603,19.36104413,20.83,20.813,20.647]
[1693429985701,19.36104413,20.83,20.814,7.97857298]
[1693429986093,19.36104413,20.83,20.813,20.647]
[1693429986298,19.36104413,20.83,20.814,7.97854711]
[1693429989207,19.36104413,20.83,20.813,20.647]
[1693429994404,19.36104413,20.83,20.813,59.73293374]
[1693429994604,841.5644304,20.85,20.814,0.5]
[1693429994810,286.73837999,20.849,20.814,43.56334183]
[1693429995006,43.83696186,20.848,20.815,8.48108099]
[1693429995203,28.67394959,20.847,20.817,14.41]
[1693429995510,19.85385186,20.846,20.815,0.5]
[1693429995714,19.35385186,20.845,20.817,14.41]
[1693429995905,19.35385186,20.844,20.815,0.5]
[1693429996105,19.35385186,20.843,20.817,14.41]
[1693429996301,19.35385186,20.842,20.815,0.5]
[1693429996509,19.35385186,20.841,20.817,14.41]
[1693429996710,19.35385186,20.84,20.817,14.41]
[1693429996906,19.35385186,20.839,20.818,7.97962418]
[1693429997106,19.35385186,20.838,20.817,14.41]
[1693429997306,19.35385186,20.837,20.818,0.5]
[1693429997501,19.35385186,20.847,20.819,0.5]
[1693429997806,19.35385186,20.846,20.821,14.41]
[1693429998010,19.35385186,20.846,20.822,8.47986683]
[1693429998011,66.3886044,20.846,20.822,8.47986683]
[1693429998202,27.68303973,20.846,20.823,0.5]
[1693429998403,19.34791888,20.845,20.823,0.5]
[1693429998812,19.34791888,20.844,20.823,8.47986683]
[1693429999113,19.34791888,20.843,20.825,14.41]
[1693429999312,19.34791888,20.842,20.823,7.97986683]
[1693429999608,0.5,20.841,20.823,7.97986683]
[1693429999803,500.0,20.843,20.824,7.97986683]
[1693430000008,19.35046745,20.841,20.806,207.63955601]
[1693430000207,0.5,20.84,20.804,208.28993558]
[1693430000512,19.35597171,20.84,20.806,514.41]
[1693430000701,0.5,20.847,20.808,33.86294915]
[1693430000900,500.0,20.843,20.809,0.5]
[1693430001104,500.0,20.843,20.808,33.86294915]
[1693430001105,0.5,20.842,20.808,33.86294915]
[1693430001615,500.0,20.834,20.808,14.41]
[1693430001815,19.35597171,20.833,20.808,14.41]
[1693430002016,19.35597171,20.832,20.811,14.41]
[1693430002207,19.35597171,20.831,20.811,14.41]
[1693430002514,19.35597171,20.83,20.808,14.41]
[1693430002713,19.35597171,20.829,20.808,14.41]
[1693430003010,19.35597171,20.828,20.808,14.41]
[1693430003212,19.35875062,20.827,20.808,14.41]
[1693430003412,0.5,20.839,20.809,21.7615]
[1693430003611,19.35872411,20.838,20.809,21.7615]
[1693430003809,0.5,20.837,20.809,21.7615]
[1693430004006,19.35872411,20.836,20.809,21.7615]
[1693430004409,19.35872411,20.835,20.809,21.7615]
[1693430005012,19.35872411,20.835,20.809,45.78956]
[1693430005514,19.35872411,20.835,20.809,21.7615]
[1693430006215,19.35872411,20.835,20.811,14.41]
[1693430006416,19.35872411,20.835,20.813,14.41]
[1693430006615,19.35872411,20.835,20.814,7.98235955]
[1693430006815,19.35872411,20.835,20.815,7.98235955]
[1693430007014,19.35872411,20.835,20.811,14.41]
[1693430007214,19.35872411,20.835,20.813,14.41]
[1693430007413,19.35872411,20.835,20.814,7.98235955]
[1693430007617,19.35872411,20.835,20.815,7.98235955]
[1693430007916,19.35872411,20.835,20.817,14.41]
[1693430008215,19.35872411,20.835,20.818,7.97999809]
[1693430008614,19.35872411,20.835,20.813,14.4]
[1693430008814,19.35872411,20.835,20.814,8.47987674]
[1693430009009,19.35872411,20.835,20.815,8.47987674]
[1693430009209,19.35872411,20.835,20.817,14.4]
[1693430009416,19.35872411,20.835,20.818,7.97987674]
[1693430009812,19.35872411,20.835,20.813,14.4]
[1693430010117,19.35872411,20.835,20.814,8.47995534]
[1693430010317,19.35872411,20.835,20.815,8.47995534]
[1693430010517,19.35872411,20.835,20.817,14.4]
[1693430010717,19.35872411,20.835,20.818,7.97995534]
[1693430011107,19.35872411,20.835,20.813,14.4]
[1693430011312,19.35872411,20.835,20.814,8.47707989]
[1693430011512,19.35872411,20.835,20.815,8.47707989]
[1693430011719,19.35872411,20.835,20.817,14.4]
[1693430011917,19.35872411,20.835,20.818,7.97707989]
[1693430012118,19.35872411,20.835,20.813,14.4]
[1693430012311,19.35872411,20.835,20.814,8.47720273]
[1693430012511,19.35872411,20.835,20.815,8.47720273]
[1693430012707,19.35872411,20.835,20.817,14.4]
[1693430012915,19.35872411,20.835,20.818,7.97720273]
[1693430013117,19.35872411,20.835,20.813,14.4]
[1693430013315,29.09678485,20.836,20.809,21.7615]
[1693430013316,29.09678485,20.836,20.814,8.47720273]
[1693430013517,29.09678485,20.836,20.815,8.47720273]
[1693430013723,29.09678485,20.836,20.817,14.4]
[1693430014124,29.09678485,20.836,20.818,7.97720273]
[1693430014319,29.09678485,20.836,20.813,14.4]
[1693430014515,29.09678485,20.836,20.814,8.47720273]
[1693430014721,29.09678485,20.836,20.815,8.47720273]
[1693430015019,29.09678485,20.836,20.817,14.4]
[1693430015220,29.09678485,20.836,20.818,7.97720273]
[1693430015418,29.09678485,20.836,20.819,7.97720273]
[1693430015721,29.09678485,20.836,20.821,14.4]
[1693430015921,29.09678485,20.836,20.815,0.5]
[1693430016122,29.09678485,20.836,20.817,14.4]
[1693430016325,29.09678485,20.836,20.818,7.97457347]
[1693430016520,29.09678485,20.836,20.819,7.97457347]
[1693430016722,29.09678485,20.836,20.821,14.4]
[1693430016920,29.09678485,20.836,20.815,0.5]
[1693430017225,0.5,20.847,20.817,14.4]
[1693430017427,19.35008284,20.846,20.818,7.97430036]
[1693430017627,0.5,20.845,20.814,8.47430036]
[1693430017821,19.35008284,20.844,20.819,7.97430036]
[1693430018021,19.35008284,20.844,20.821,14.4]
[1693430018216,19.35008284,20.843,20.822,7.97430036]
[1693430018422,19.35008284,20.842,20.823,7.97430036]
[1693430018619,19.35008284,20.841,20.822,7.97430036]
[1693430018821,0.5,20.847,20.823,7.97430036]
[1693430019021,19.34607667,20.846,20.823,7.97430036]
[1693430019326,0.5,20.845,20.825,14.4]
[1693430019638,19.34607667,20.844,20.825,14.4]
[1693430020128,19.34607667,20.843,20.825,14.4]